[Event "*** SCC Grand Prix: Titled Tuesday Blitz"]
[Site "Chess.com"]
[Date "2020.08.11"]
[Round "4"]
[White "Khvicha_Supatashvili"]
[Black "Fischerev7"]
[Result "1-0"]
[WhiteElo "2715"]
[BlackElo "2415"]
[TimeControl "180+1"]
[EndTime "10:41:03 PDT"]
[Termination "Khvicha_Supatashvili won by resignation"]

1. d4 {[%clk 0:02:59.7]} 1... Nf6 {[%clk 0:02:59.5]} 2. Nf3 {[%clk 0:02:59.8]}
2... e6 {[%clk 0:02:59.1]} 3. c4 {[%clk 0:02:59.7]} 3... b6 {[%clk 0:02:58.6]}
4. e3 {[%clk 0:02:59.3]} 4... Ba6 {[%clk 0:02:57.7]} 5. Bd3 {[%clk 0:02:54.2]}
5... Bb4+ {[%clk 0:02:51.5]} 6. Nbd2 {[%clk 0:02:53.2]} 6... O-O {[%clk
0:02:47.5]} 7. O-O {[%clk 0:02:51.9]} 7... d5 {[%clk 0:02:46.8]} 8. Qc2 {[%clk
0:02:49.7]} 8... Bxd2 {[%clk 0:02:31]} 9. Bxd2 {[%clk 0:02:43]} 9... Bxc4 {[%clk
0:02:29.6]} 10. Bxc4 {[%clk 0:02:43.1]} 10... dxc4 {[%clk 0:02:30.1]} 11. Qxc4
{[%clk 0:02:43.2]} 11... Nbd7 {[%clk 0:02:29.6]} 12. Qc6 {[%clk 0:02:38.1]}
12... Rc8 {[%clk 0:02:21.3]} 13. Rac1 {[%clk 0:02:23.6]} 13... h6 {[%clk
0:02:07.7]} 14. Rc2 {[%clk 0:02:11.7]} 14... Nb8 {[%clk 0:01:58.3]} 15. Qb7
{[%clk 0:02:09.3]} 15... a5 {[%clk 0:01:46.9]} 16. Rfc1 {[%clk 0:01:49.1]} 16...
Ne8 {[%clk 0:01:19.7]} 17. Ne5 {[%clk 0:01:44.2]} 17... f6 {[%clk 0:01:08.7]}
18. Ng6 {[%clk 0:01:24.7]} 18... Rf7 {[%clk 0:01:07.2]} 19. Qe4 {[%clk
0:01:07.5]} 19... Qd5 {[%clk 0:01:03.8]} 20. Qxd5 {[%clk 0:01:00.6]} 20... exd5
{[%clk 0:01:04.7]} 21. h4 {[%clk 0:00:54.5]} 21... Rd8 {[%clk 0:00:52.8]} 22. f3
{[%clk 0:00:52.1]} 22... Rfd7 {[%clk 0:00:49.7]} 23. Be1 {[%clk 0:00:51]} 23...
c6 {[%clk 0:00:34.1]} 24. Bg3 {[%clk 0:00:49.7]} 24... Nd6 {[%clk 0:00:23.9]}
25. Bf4 {[%clk 0:00:48.8]} 25... Kf7 {[%clk 0:00:21.9]} 26. h5 {[%clk
0:00:48.3]} 26... Re8 {[%clk 0:00:17.2]} 27. Kf2 {[%clk 0:00:47.3]} 27... Red8
{[%clk 0:00:16.9]} 28. g4 {[%clk 0:00:46.4]} 28... Re8 {[%clk 0:00:17]} 29. b3
{[%clk 0:00:44.6]} 29... Red8 {[%clk 0:00:16.6]} 30. a4 {[%clk 0:00:43.8]} 30...
Re8 {[%clk 0:00:16.8]} 31. Bg3 {[%clk 0:00:42.9]} 31... Red8 {[%clk 0:00:16.3]}
32. Nh4 {[%clk 0:00:42.7]} 32... Re8 {[%clk 0:00:14.5]} 33. Bf4 {[%clk
0:00:39.5]} 33... Re6 {[%clk 0:00:13.3]} 34. Nf5 {[%clk 0:00:37.1]} 34... Nxf5
{[%clk 0:00:13.2]} 35. gxf5 {[%clk 0:00:37.3]} 35... Re8 {[%clk 0:00:13.5]} 36.
Bxb8 {[%clk 0:00:36.9]} 36... Rxb8 {[%clk 0:00:14.4]} 37. Rxc6 {[%clk
0:00:37.2]} 37... Re7 {[%clk 0:00:14]} 38. R1c3 {[%clk 0:00:24.7]} 38... b5
{[%clk 0:00:14]} 39. axb5 {[%clk 0:00:24.5]} 39... Rxb5 {[%clk 0:00:14.9]} 40.
R6c5 {[%clk 0:00:24.7]} 40... Rxc5 {[%clk 0:00:14]} 41. Rxc5 {[%clk 0:00:21.5]}
41... Rb7 {[%clk 0:00:14.5]} 42. Rxa5 {[%clk 0:00:20]} 42... Rxb3 {[%clk
0:00:15]} 43. Rxd5 {[%clk 0:00:19.9]} 43... Rb2+ {[%clk 0:00:15.5]} 44. Kg3
{[%clk 0:00:20.2]} 44... Re2 {[%clk 0:00:12.7]} 45. e4 {[%clk 0:00:19.5]} 45...
Re1 {[%clk 0:00:12.6]} 46. Rd7+ {[%clk 0:00:19.2]} 46... Kf8 {[%clk 0:00:12.6]}
47. Kf4 {[%clk 0:00:18.2]} 47... Rh1 {[%clk 0:00:12.9]} 48. e5 {[%clk
0:00:17.4]} 48... fxe5+ {[%clk 0:00:12]} 49. dxe5 {[%clk 0:00:17.1]} 49... Rxh5
{[%clk 0:00:12.1]} 50. e6 {[%clk 0:00:17.3]} 50... Rh4+ {[%clk 0:00:12.3]} 51.
Ke5 {[%clk 0:00:17.1]} 51... Rh1 {[%clk 0:00:11.5]} 52. Rf7+ {[%clk 0:00:12.3]}
52... Kg8 {[%clk 0:00:10.1]} 53. Ra7 {[%clk 0:00:10.5]} 53... Kf8 {[%clk
0:00:10.4]} 54. Kf4 {[%clk 0:00:10.2]} 54... Rg1 {[%clk 0:00:08.8]} 55. Ra8+
{[%clk 0:00:09.4]} 55... Ke7 {[%clk 0:00:08.9]} 56. Ra7+ {[%clk 0:00:10]} 56...
Kf8 {[%clk 0:00:09.2]} 57. f6 {[%clk 0:00:09.7]} 57... gxf6 {[%clk 0:00:08.2]}
58. Rf7+ {[%clk 0:00:08.3]} 58... Ke8 {[%clk 0:00:07.6]} 59. Rxf6 {[%clk
0:00:08.3]} 59... h5 {[%clk 0:00:08]} 60. Rh6 {[%clk 0:00:08]} 60... Rh1 {[%clk
0:00:07.5]} 61. Kf5 {[%clk 0:00:07.9]} 61... Ke7 {[%clk 0:00:07.4]} 62. Rh7+
{[%clk 0:00:07.6]} 62... Ke8 {[%clk 0:00:07.1]} 63. Kf6 {[%clk 0:00:07.4]} 63...
Kd8 {[%clk 0:00:01.5]} 64. Rh8+ {[%clk 0:00:07.5]} 64... Kc7 {[%clk 0:00:01.6]}
65. e7 {[%clk 0:00:08.4]} 65... Re1 {[%clk 0:00:01.8]} 66. e8=Q {[%clk
0:00:07.9]} 66... Rxe8 {[%clk 0:00:02.1]} 67. Rxe8 {[%clk 0:00:08]} 67... h4
{[%clk 0:00:02.7]} 68. Rh8 {[%clk 0:00:07.9]} 1-0

[Event "*** SCC Grand Prix: Titled Tuesday Blitz"]
[Site "Chess.com"]
[Date "2020.08.11"]
[Round "4"]
[White "GMaka"]
[Black "Sesleria"]
[Result "1-0"]
[WhiteElo "2351"]
[BlackElo "1959"]
[TimeControl "180+1"]
[EndTime "10:41:07 PDT"]
[Termination "GMaka won on time"]

1. Nf3 {[%clk 0:03:00.9]} 1... Nf6 {[%clk 0:02:59.1]} 2. c4 {[%clk 0:03:01.1]}
2... e6 {[%clk 0:02:56.3]} 3. Nc3 {[%clk 0:03:00.9]} 3... d5 {[%clk 0:02:55.8]}
4. d4 {[%clk 0:03:00]} 4... c6 {[%clk 0:02:55.3]} 5. Bg5 {[%clk 0:02:57.9]} 5...
h6 {[%clk 0:02:51.5]} 6. Bh4 {[%clk 0:02:54.8]} 6... dxc4 {[%clk 0:02:49.7]} 7.
e4 {[%clk 0:02:52.7]} 7... g5 {[%clk 0:02:49.8]} 8. Bg3 {[%clk 0:02:52.5]} 8...
b5 {[%clk 0:02:50.1]} 9. a3 {[%clk 0:02:40.5]} 9... Nbd7 {[%clk 0:02:45.1]} 10.
h4 {[%clk 0:02:38.9]} 10... g4 {[%clk 0:02:34.5]} 11. Ne5 {[%clk 0:02:37.7]}
11... Qb6 {[%clk 0:02:19.3]} 12. Nxd7 {[%clk 0:02:34]} 12... Bxd7 {[%clk
0:01:48.4]} 13. Be5 {[%clk 0:02:11.1]} 13... Be7 {[%clk 0:01:42]} 14. Be2 {[%clk
0:01:44.8]} 14... Rg8 {[%clk 0:01:35.1]} 15. O-O {[%clk 0:01:41.8]} 15... O-O-O
{[%clk 0:01:19.4]} 16. g3 {[%clk 0:01:37.2]} 16... c5 {[%clk 0:01:18.6]} 17. a4
{[%clk 0:01:04.6]} 17... b4 {[%clk 0:00:52]} 18. a5 {[%clk 0:01:04]} 18... Qa6
{[%clk 0:00:37.3]} 19. Na4 {[%clk 0:00:41.1]} 19... Nxe4 {[%clk 0:00:30.1]} 20.
Qc2 {[%clk 0:00:40.7]} 20... Bc6 {[%clk 0:00:20.3]} 21. Bxc4 {[%clk 0:00:39]}
21... Qb7 {[%clk 0:00:20.3]} 22. a6 {[%clk 0:00:37.8]} 22... Qd7 {[%clk
0:00:19.8]} 23. Nxc5 {[%clk 0:00:35.9]} 23... Bxc5 {[%clk 0:00:19.1]} 24. dxc5
{[%clk 0:00:36.8]} 24... f5 {[%clk 0:00:15.3]} 25. Rfd1 {[%clk 0:00:32.4]} 25...
Bd5 {[%clk 0:00:15.5]} 26. Bxd5 {[%clk 0:00:28.6]} 26... exd5 {[%clk 0:00:15.4]}
27. c6 {[%clk 0:00:29.1]} 27... Qe6 {[%clk 0:00:15.1]} 28. Bd4 {[%clk
0:00:28.7]} 28... Kc7 {[%clk 0:00:14.2]} 29. Bxa7 {[%clk 0:00:28.2]} 29... Ra8
{[%clk 0:00:13.4]} 30. Be3 {[%clk 0:00:26.3]} 30... h5 {[%clk 0:00:11]} 31. Bf4+
{[%clk 0:00:26.2]} 31... Kc8 {[%clk 0:00:11.4]} 32. c7 {[%clk 0:00:24.4]} 32...
Rxa6 {[%clk 0:00:10.6]} 33. Rxa6 {[%clk 0:00:23.9]} 33... Qxa6 {[%clk
0:00:11.5]} 34. Rxd5 {[%clk 0:00:23.5]} 34... Qa1+ {[%clk 0:00:07.5]} 35. Kg2
{[%clk 0:00:21.8]} 35... Qa8 {[%clk 0:00:08]} 36. Rd8+ {[%clk 0:00:16.9]} 36...
Rxd8 {[%clk 0:00:07.4]} 37. cxd8=Q+ {[%clk 0:00:17.2]} 37... Kxd8 {[%clk
0:00:08.3]} 38. Qc7+ {[%clk 0:00:17.3]} 38... Ke8 {[%clk 0:00:08]} 39. Kg1
{[%clk 0:00:16.5]} 39... Qa1+ {[%clk 0:00:06.7]} 40. Kh2 {[%clk 0:00:16.7]}
40... Qa8 {[%clk 0:00:06.4]} 41. Qe5+ {[%clk 0:00:15.8]} 41... Kd8 {[%clk
0:00:06]} 42. Qxf5 {[%clk 0:00:15]} 42... Qc6 {[%clk 0:00:03.2]} 43. Bg5+ {[%clk
0:00:15.1]} 43... Kc7 {[%clk 0:00:03.1]} 44. Qf7+ {[%clk 0:00:13.8]} 44... Kb6
{[%clk 0:00:03.6]} 45. Be3+ {[%clk 0:00:12.8]} 45... Kb5 {[%clk 0:00:04.2]} 46.
Qxh5+ {[%clk 0:00:12.3]} 46... Ka4 {[%clk 0:00:04.7]} 47. Qxg4 {[%clk
0:00:12.2]} 47... Kb3 {[%clk 0:00:05.2]} 48. Qd1+ {[%clk 0:00:11.6]} 48... Ka2
{[%clk 0:00:05.3]} 49. h5 {[%clk 0:00:11.8]} 49... Nf6 {[%clk 0:00:05.3]} 50. h6
{[%clk 0:00:10.9]} 50... Qe6 {[%clk 0:00:05.8]} 51. Kg2 {[%clk 0:00:10.6]} 51...
Ng4 {[%clk 0:00:06.5]} 52. Qf3 {[%clk 0:00:10.6]} 52... Nxe3+ {[%clk 0:00:06.8]}
53. Qxe3 {[%clk 0:00:11.5]} 53... Qd5+ {[%clk 0:00:07.2]} 54. Qf3 {[%clk
0:00:11.7]} 54... Qg5 {[%clk 0:00:07.3]} 55. h7 {[%clk 0:00:11.8]} 55... Qh6
{[%clk 0:00:07.4]} 56. Qf7+ {[%clk 0:00:10.3]} 56... b3 {[%clk 0:00:07.9]} 57.
Qg8 {[%clk 0:00:10.4]} 57... Qc6+ {[%clk 0:00:07.2]} 58. Kh2 {[%clk 0:00:09.9]}
58... Qh6+ {[%clk 0:00:07.2]} 59. Kg1 {[%clk 0:00:09.7]} 59... Qc1+ {[%clk
0:00:07.2]} 60. Kg2 {[%clk 0:00:10.3]} 60... Qc6+ {[%clk 0:00:07.8]} 61. f3
{[%clk 0:00:11.2]} 61... Qc2+ {[%clk 0:00:08]} 62. Kh3 {[%clk 0:00:11.5]} 62...
Qf5+ {[%clk 0:00:07.6]} 63. Kh4 {[%clk 0:00:11.1]} 63... Qf6+ {[%clk 0:00:06.3]}
64. Kg4 {[%clk 0:00:10.7]} 64... Qd4+ {[%clk 0:00:05.5]} 65. f4 {[%clk
0:00:10.5]} 65... Qd1+ {[%clk 0:00:05.5]} 66. Kg5 {[%clk 0:00:11]} 66... Qg1
{[%clk 0:00:02.7]} 67. g4 {[%clk 0:00:11.9]} 67... Qc5+ {[%clk 0:00:01.8]} 68.
f5 {[%clk 0:00:12.3]} 68... Qe3+ {[%clk 0:00:02.4]} 69. Kh5 {[%clk 0:00:12.5]}
69... Qh3+ {[%clk 0:00:02.5]} 70. Kg6 {[%clk 0:00:13.4]} 70... Qxg4+ {[%clk
0:00:02.6]} 71. Kf6 {[%clk 0:00:14.3]} 71... Qh4+ {[%clk 0:00:02.7]} 72. Kf7
{[%clk 0:00:14.1]} 72... Qh5+ {[%clk 0:00:02.8]} 73. Qg6 {[%clk 0:00:13.6]} 1-0

[Event "*** SCC Grand Prix: Titled Tuesday Blitz"]
[Site "Chess.com"]
[Date "2020.08.11"]
[Round "4"]
[White "chess94cu"]
[Black "Kotofeyca"]
[Result "1-0"]
[WhiteElo "2592"]
[BlackElo "2300"]
[TimeControl "180+1"]
[EndTime "10:41:08 PDT"]
[Termination "chess94cu won by resignation"]

1. d4 {[%clk 0:03:00.9]} 1... d5 {[%clk 0:02:59.7]} 2. c4 {[%clk 0:03:01.3]}
2... c6 {[%clk 0:02:59.4]} 3. Nf3 {[%clk 0:03:01.4]} 3... Nf6 {[%clk 0:02:59.9]}
4. e3 {[%clk 0:03:02.1]} 4... a6 {[%clk 0:02:59.6]} 5. Bd3 {[%clk 0:03:00.9]}
5... Bg4 {[%clk 0:02:59.3]} 6. Qb3 {[%clk 0:02:52]} 6... b5 {[%clk 0:02:56.2]}
7. cxd5 {[%clk 0:02:50.2]} 7... Bxf3 {[%clk 0:02:55.8]} 8. gxf3 {[%clk
0:02:49.6]} 8... cxd5 {[%clk 0:02:55.9]} 9. a4 {[%clk 0:02:48.7]} 9... bxa4
{[%clk 0:02:54.3]} 10. Qxa4+ {[%clk 0:02:47.6]} 10... Nfd7 {[%clk 0:02:46.4]}
11. Nc3 {[%clk 0:02:44.3]} 11... e6 {[%clk 0:02:46.4]} 12. Bd2 {[%clk
0:02:34.7]} 12... Bd6 {[%clk 0:02:38]} 13. e4 {[%clk 0:02:29]} 13... O-O {[%clk
0:02:22.7]} 14. e5 {[%clk 0:02:26.9]} 14... Be7 {[%clk 0:02:18.5]} 15. f4 {[%clk
0:02:21.4]} 15... Nb6 {[%clk 0:02:14.9]} 16. Qc2 {[%clk 0:02:18.3]} 16... g6
{[%clk 0:02:09.2]} 17. Na4 {[%clk 0:02:12.4]} 17... Nc4 {[%clk 0:01:54.4]} 18.
Bxc4 {[%clk 0:02:00.8]} 18... dxc4 {[%clk 0:01:55.3]} 19. Qxc4 {[%clk
0:02:00.8]} 19... Nd7 {[%clk 0:01:55.2]} 20. Rc1 {[%clk 0:01:47.1]} 20... Nb6
{[%clk 0:01:42.1]} 21. Nxb6 {[%clk 0:01:19.4]} 21... Qxb6 {[%clk 0:01:43]} 22.
Bc3 {[%clk 0:01:18.2]} 22... Rac8 {[%clk 0:01:26.9]} 23. Qe2 {[%clk 0:01:18]}
23... a5 {[%clk 0:01:10.9]} 24. O-O {[%clk 0:01:16.4]} 24... a4 {[%clk 0:01:11]}
25. Rfd1 {[%clk 0:01:10.1]} 25... Qb3 {[%clk 0:01:09.7]} 26. Be1 {[%clk
0:00:59]} 26... Rxc1 {[%clk 0:01:03.6]} 27. Rxc1 {[%clk 0:00:59.9]} 27... Rd8
{[%clk 0:01:03.6]} 28. Rc4 {[%clk 0:00:50.1]} 28... Rb8 {[%clk 0:00:44.4]} 29.
Rc2 {[%clk 0:00:40.3]} 29... Bf8 {[%clk 0:00:38.9]} 30. Kg2 {[%clk 0:00:22.4]}
30... Bh6 {[%clk 0:00:37.7]} 31. Rc4 {[%clk 0:00:15.5]} 31... Qb7+ {[%clk
0:00:33]} 32. Qf3 {[%clk 0:00:15]} 32... Qb5 {[%clk 0:00:29]} 33. Rb4 {[%clk
0:00:10.2]} 33... Qe8 {[%clk 0:00:26.8]} 34. Rxb8 {[%clk 0:00:11.1]} 34... Qxb8
{[%clk 0:00:27.7]} 35. f5 {[%clk 0:00:11.1]} 35... gxf5 {[%clk 0:00:24.6]} 36.
Bc3 {[%clk 0:00:11]} 36... Bc1 {[%clk 0:00:20.6]} 37. Qe2 {[%clk 0:00:05.6]}
37... Qb7+ {[%clk 0:00:20.8]} 38. f3 {[%clk 0:00:05.1]} 38... Qb3 {[%clk
0:00:20.3]} 39. Qe1 {[%clk 0:00:02.2]} 39... f4 {[%clk 0:00:17.9]} 40. Qxc1
{[%clk 0:00:02.1]} 40... Qc4 {[%clk 0:00:16.6]} 41. Qxf4 {[%clk 0:00:02.3]}
41... Qe2+ {[%clk 0:00:15.3]} 42. Kh3 {[%clk 0:00:01.8]} 42... Qf1+ {[%clk
0:00:15.2]} 43. Kh4 {[%clk 0:00:02.1]} 43... Kf8 {[%clk 0:00:11.5]} 44. Qg3
{[%clk 0:00:03]} 44... Qd3 {[%clk 0:00:10.5]} 45. Bb4+ {[%clk 0:00:02.8]} 45...
Ke8 {[%clk 0:00:09.5]} 46. Qg8+ {[%clk 0:00:03.7]} 46... Kd7 {[%clk 0:00:10.4]}
47. Qxf7+ {[%clk 0:00:04.6]} 47... Kc6 {[%clk 0:00:11.3]} 48. Qxe6+ {[%clk
0:00:05]} 48... Kb5 {[%clk 0:00:12.2]} 49. Bc3 {[%clk 0:00:05.3]} 49... Qxf3
{[%clk 0:00:10.7]} 50. Qd7+ {[%clk 0:00:04.8]} 50... Kc4 {[%clk 0:00:11.2]} 51.
Qc7+ {[%clk 0:00:05]} 51... Kb3 {[%clk 0:00:11.5]} 52. e6 {[%clk 0:00:05.4]}
52... Qe4+ {[%clk 0:00:10.1]} 53. Kh3 {[%clk 0:00:05]} 53... Qxe6+ {[%clk
0:00:10.1]} 54. Kg3 {[%clk 0:00:05.1]} 54... Qe3+ {[%clk 0:00:10.6]} 55. Kg4
{[%clk 0:00:05]} 55... Qe4+ {[%clk 0:00:09.8]} 56. Qf4 {[%clk 0:00:05.4]} 56...
Qg2+ {[%clk 0:00:09.8]} 57. Kh4 {[%clk 0:00:04.4]} 57... a3 {[%clk 0:00:08.2]}
58. bxa3 {[%clk 0:00:04.6]} 58... Kxc3 {[%clk 0:00:08.1]} 59. Qg3+ {[%clk
0:00:04.8]} 59... Qxg3+ {[%clk 0:00:07.7]} 60. hxg3 {[%clk 0:00:05.7]} 60...
Kxd4 {[%clk 0:00:08.6]} 61. Kh5 {[%clk 0:00:05.7]} 61... Kc4 {[%clk 0:00:09.2]}
62. Kh6 {[%clk 0:00:05.9]} 62... Kb3 {[%clk 0:00:10.1]} 63. Kxh7 {[%clk
0:00:06.4]} 63... Kxa3 {[%clk 0:00:11]} 64. g4 {[%clk 0:00:07.3]} 64... Kb4
{[%clk 0:00:11.9]} 65. g5 {[%clk 0:00:08.2]} 65... Kc5 {[%clk 0:00:12.8]} 66. g6
{[%clk 0:00:09.1]} 66... Kd6 {[%clk 0:00:13.7]} 67. g7 {[%clk 0:00:10]} 67...
Ke7 {[%clk 0:00:14.6]} 68. g8=Q {[%clk 0:00:10.9]} 1-0

[Event "*** SCC Grand Prix: Titled Tuesday Blitz"]
[Site "Chess.com"]
[Date "2020.08.11"]
[Round "4"]
[White "HanSchut"]
[Black "NotFischer"]
[Result "1/2-1/2"]
[WhiteElo "2312"]
[BlackElo "2095"]
[TimeControl "180+1"]
[EndTime "10:41:14 PDT"]
[Termination "Game drawn - insufficient material"]

1. e4 {[%clk 0:03:00.9]} 1... d5 {[%clk 0:02:59.4]} 2. exd5 {[%clk 0:02:55.5]}
2... Nf6 {[%clk 0:02:59.9]} 3. Bb5+ {[%clk 0:02:54.6]} 3... Nbd7 {[%clk
0:02:59.2]} 4. Be2 {[%clk 0:02:52.5]} 4... Nxd5 {[%clk 0:02:50]} 5. d4 {[%clk
0:02:52.6]} 5... N7b6 {[%clk 0:02:43.5]} 6. c4 {[%clk 0:02:52.5]} 6... Nf6
{[%clk 0:02:43.1]} 7. Nc3 {[%clk 0:02:50.2]} 7... Bf5 {[%clk 0:02:42]} 8. Be3
{[%clk 0:02:45.3]} 8... e6 {[%clk 0:02:41.7]} 9. Rc1 {[%clk 0:02:36.6]} 9... Bb4
{[%clk 0:02:40.4]} 10. a3 {[%clk 0:02:10.9]} 10... Bxc3+ {[%clk 0:02:39.5]} 11.
Rxc3 {[%clk 0:02:11.5]} 11... Ne4 {[%clk 0:02:39.6]} 12. Rc1 {[%clk 0:02:06.9]}
12... O-O {[%clk 0:02:26.7]} 13. Nf3 {[%clk 0:02:07.1]} 13... Qe7 {[%clk
0:02:18.5]} 14. O-O {[%clk 0:02:01.8]} 14... c5 {[%clk 0:02:17.1]} 15. Qb3
{[%clk 0:01:45.3]} 15... Rfd8 {[%clk 0:01:59.4]} 16. Rfd1 {[%clk 0:01:31.8]}
16... Nd7 {[%clk 0:01:38.8]} 17. d5 {[%clk 0:01:15.2]} 17... exd5 {[%clk
0:01:30.5]} 18. cxd5 {[%clk 0:01:15.3]} 18... b6 {[%clk 0:01:13.9]} 19. Bb5
{[%clk 0:00:56.8]} 19... Ndf6 {[%clk 0:01:05]} 20. Bc6 {[%clk 0:00:56.6]} 20...
Rac8 {[%clk 0:01:03.1]} 21. Re1 {[%clk 0:00:46.6]} 21... Qc7 {[%clk 0:00:53.8]}
22. Ng5 {[%clk 0:00:26.1]} 22... h6 {[%clk 0:00:43.8]} 23. Nxe4 {[%clk
0:00:25.8]} 23... Bxe4 {[%clk 0:00:40.6]} 24. g3 {[%clk 0:00:20.4]} 24... Bxd5
{[%clk 0:00:32.1]} 25. Bxd5 {[%clk 0:00:19.3]} 25... Nxd5 {[%clk 0:00:32.7]} 26.
Bd2 {[%clk 0:00:16.2]} 26... Qc6 {[%clk 0:00:27.7]} 27. Qf3 {[%clk 0:00:15.3]}
27... Nf6 {[%clk 0:00:24.2]} 28. Qxc6 {[%clk 0:00:15.4]} 28... Rxc6 {[%clk
0:00:24.5]} 29. Bc3 {[%clk 0:00:15.9]} 29... Nd5 {[%clk 0:00:22]} 30. Rcd1
{[%clk 0:00:16.3]} 30... Rcd6 {[%clk 0:00:21]} 31. Be5 {[%clk 0:00:16.1]} 31...
R6d7 {[%clk 0:00:21]} 32. Rc1 {[%clk 0:00:12.5]} 32... f6 {[%clk 0:00:19.9]} 33.
Bc3 {[%clk 0:00:10.1]} 33... Kf7 {[%clk 0:00:20.5]} 34. b4 {[%clk 0:00:09.7]}
34... cxb4 {[%clk 0:00:19.9]} 35. Bxb4 {[%clk 0:00:10.3]} 35... a5 {[%clk
0:00:19]} 36. Bd2 {[%clk 0:00:08.9]} 36... Ne7 {[%clk 0:00:18]} 37. Be3 {[%clk
0:00:09.3]} 37... Nd5 {[%clk 0:00:15.2]} 38. Rb1 {[%clk 0:00:09.7]} 38... Rd6
{[%clk 0:00:14.3]} 39. a4 {[%clk 0:00:09.1]} 39... Re8 {[%clk 0:00:12.6]} 40.
Red1 {[%clk 0:00:08.8]} 40... Ree6 {[%clk 0:00:07.1]} 41. Rb5 {[%clk 0:00:05.4]}
41... Nc3 {[%clk 0:00:06.1]} 42. Rxd6 {[%clk 0:00:06.3]} 42... Rxd6 {[%clk
0:00:06.5]} 43. Rxb6 {[%clk 0:00:05.7]} 43... Rxb6 {[%clk 0:00:06.6]} 44. Bxb6
{[%clk 0:00:06.5]} 44... Nxa4 {[%clk 0:00:06.6]} 45. Bxa5 {[%clk 0:00:07.2]}
45... Nc5 {[%clk 0:00:06.1]} 46. Bd2 {[%clk 0:00:07.1]} 46... Ne6 {[%clk
0:00:07]} 47. Kf1 {[%clk 0:00:07.3]} 47... f5 {[%clk 0:00:07.4]} 48. f3 {[%clk
0:00:07.7]} 48... h5 {[%clk 0:00:07.8]} 49. Ke2 {[%clk 0:00:08.4]} 49... g6
{[%clk 0:00:08.2]} 50. h3 {[%clk 0:00:08.9]} 50... Ng7 {[%clk 0:00:08.2]} 51.
Be3 {[%clk 0:00:09.5]} 51... Ke6 {[%clk 0:00:08.5]} 52. Kd3 {[%clk 0:00:10.1]}
52... Ne8 {[%clk 0:00:08.8]} 53. f4 {[%clk 0:00:10.6]} 53... Nf6 {[%clk
0:00:08.9]} 54. Bf2 {[%clk 0:00:10.1]} 54... Ne4 {[%clk 0:00:09.2]} 55. Be1
{[%clk 0:00:10.6]} 55... Kd6 {[%clk 0:00:09.6]} 56. Ke3 {[%clk 0:00:10.9]} 56...
Kd5 {[%clk 0:00:10.5]} 57. Kf3 {[%clk 0:00:11.1]} 57... Kc4 {[%clk 0:00:10.2]}
58. g4 {[%clk 0:00:11.7]} 58... Kd3 {[%clk 0:00:08.8]} 59. gxh5 {[%clk
0:00:11.8]} 59... gxh5 {[%clk 0:00:09.2]} 60. h4 {[%clk 0:00:11.7]} 60... Nf6
{[%clk 0:00:07.6]} 61. Bf2 {[%clk 0:00:11.2]} 61... Nd5 {[%clk 0:00:07.7]} 62.
Bg3 {[%clk 0:00:11]} 62... Nc3 {[%clk 0:00:07.8]} 63. Bf2 {[%clk 0:00:10.6]}
63... Ne4 {[%clk 0:00:08.4]} 64. Be1 {[%clk 0:00:11.2]} 64... Kc2 {[%clk
0:00:07.7]} 65. Bf2 {[%clk 0:00:11.3]} 65... Kd2 {[%clk 0:00:07.4]} 66. Bg3
{[%clk 0:00:10.9]} 66... Kd1 {[%clk 0:00:07.2]} 67. Bh2 {[%clk 0:00:10.6]} 67...
Kd2 {[%clk 0:00:06.6]} 68. Bg1 {[%clk 0:00:11.2]} 68... Kd1 {[%clk 0:00:06.5]}
69. Bh2 {[%clk 0:00:11.7]} 69... Ke1 {[%clk 0:00:06.2]} 70. Bg1 {[%clk
0:00:12.2]} 70... Kf1 {[%clk 0:00:06.4]} 71. Bb6 {[%clk 0:00:12]} 71... Nd2+
{[%clk 0:00:03.4]} 72. Ke3 {[%clk 0:00:10.4]} 72... Nc4+ {[%clk 0:00:03.4]} 73.
Kd4 {[%clk 0:00:10]} 73... Nxb6 {[%clk 0:00:04.3]} 74. Ke5 {[%clk 0:00:10.8]}
74... Kg2 {[%clk 0:00:04.6]} 75. Kxf5 {[%clk 0:00:11.7]} 75... Kg3 {[%clk
0:00:04.8]} 76. Kg5 {[%clk 0:00:12.4]} 76... Kf3 {[%clk 0:00:01.4]} 77. f5
{[%clk 0:00:12.8]} 77... Nd5 {[%clk 0:00:01.8]} 78. Kxh5 {[%clk 0:00:11.2]}
78... Kf4 {[%clk 0:00:02.2]} 79. Kg6 {[%clk 0:00:12.1]} 79... Kg4 {[%clk
0:00:02]} 80. h5 {[%clk 0:00:11.8]} 80... Nf4+ {[%clk 0:00:02.5]} 81. Kh6 {[%clk
0:00:11]} 81... Nxh5 {[%clk 0:00:03.4]} 82. f6 {[%clk 0:00:10.7]} 82... Nxf6
{[%clk 0:00:03.5]} 1/2-1/2